fUSD/lending_fUSD_20250215
["ID","MTS","AMOUNT","RATE_DAILY","PERIOD"]
[353127607,1739587837332,-503.14354629,0.00010958,2]
[353127608,1739587837341,-500.0,0.00010958,2]
[353127609,1739587837351,-500.0,0.00010958,2]
[353127610,1739587837361,-500.0,0.00010958,2]
[353127611,1739587837370,-500.0,0.00010958,2]
[353127612,1739587837379,-500.0,0.00010958,2]
[353127613,1739587837388,-504.57780781,0.00010958,2]
[353127614,1739587837397,-500.0,0.00010958,2]
[353127615,1739587837406,-502.51394698,0.00010958,2]
[353127616,1739587837415,-782.55,0.00010958,2]
[353127617,1739587837424,-503.21437444,0.00010958,2]
[353127620,1739587837433,-505.3529235,0.00010958,2]
[353127621,1739587837442,-1085.38,0.00010958,2]
[353127623,1739587837452,-499.09110694,0.00010958,2]
[353127625,1739587837461,-503.83801925,0.00010958,2]
[353127626,1739587837470,-502.02651856,0.00010958,2]
[353127627,1739587837479,-500.0,0.00010958,2]
[353127628,1739587837489,-500.0,0.00010958,2]
[353127629,1739587837498,-729.64,0.00010958,2]
[353127631,1739587837507,-505.54240063,0.00010958,2]
[353127632,1739587837517,-500.0,0.00010958,2]
[353127633,1739587837527,-504.79200677,0.00010958,2]
[353127634,1739587837538,-502.86311284,0.00010958,2]
[353127635,1739587837548,-878.2,0.00010958,2]
[353127636,1739587837558,-500.0,0.00010958,2]
[353127637,1739587837568,-500.0,0.00010958,2]
[353127638,1739587837578,-500.0,0.00010958,2]
[353127639,1739587837587,-500.0,0.00010958,2]
[353127640,1739587837596,-501.96436335,0.00010958,2]
[353127641,1739587837605,-1307.63,0.00010958,2]
[353127642,1739587837615,-1708.03,0.00010958,2]
[353127643,1739587837625,-507.12107085,0.00010958,2]
[353127644,1739587837635,-500.0,0.00010958,2]
[353127645,1739587837645,-533.97,0.00010958,2]
[353127646,1739587837654,-504.15298669,0.00010958,2]
[353127647,1739587837664,-503.08516722,0.00010958,2]
[353127648,1739587837673,-1093.43,0.00010958,2]
[353127649,1739587837682,-500.0,0.00010958,2]
[353127650,1739587837692,-206.88203239,0.00010958,2]
[353127651,1739587837701,-500.0,0.00010958,2]
[353127652,1739587837711,-1236.51,0.00010958,2]
[353127653,1739587837720,-502.77777483,0.00010958,2]
[353127654,1739587837730,-503.73035904,0.00010958,2]
[353127655,1739587837739,-478.23066838,0.00010958,2]
[353127656,1739587837748,-504.78904184,0.00010958,2]
[353127657,1739587837757,-500.0,0.00010958,2]
[353127658,1739587837767,-507.15813512,0.00010958,2]
[353127659,1739587837776,-764.74,0.00010958,2]
[353127660,1739587837785,-502.13610493,0.00010958,2]
[353127661,1739587837794,-500.0,0.00010958,2]
[353127662,1739587837804,-500.0,0.00010958,2]
[353127663,1739587837814,-500.0,0.00010958,2]
[353127664,1739587837823,-538.54867898,0.00010958,2]
[353127665,1739587837833,-924.6,0.00010958,2]
[353127666,1739587837843,-6505.01,0.00010958,2]
[353127667,1739587837852,-498.80032317,0.00010958,2]
[353127668,1739587837863,-500.0,0.00010958,2]
[353127669,1739587837873,-879.32,0.00010958,2]
[353127670,1739587837883,-961.29,0.00010958,2]
[353127671,1739587837892,-500.0,0.00010958,2]
[353127672,1739587837902,-500.0,0.00010958,2]
[353127673,1739587837912,-500.0,0.00010958,2]
[353127674,1739587837921,-500.0,0.00010958,2]
[353127675,1739587837930,-501.70445832,0.00010958,2]
[353127676,1739587837940,-500.0,0.00010958,2]
[353127677,1739587837950,-874.51,0.00010958,2]
[353127679,1739587837960,-503.10014358,0.00010958,2]
[353127680,1739587837969,-500.0,0.00010958,2]
[353127681,1739587837979,-502.78788534,0.00010958,2]
[353127682,1739587837988,-505.8906512,0.00010958,2]
[353127683,1739587837998,-500.0,0.00010958,2]
[353127684,1739587838008,-378.30795624,0.00010958,2]
[353127686,1739587838017,-500.0,0.00010958,2]
[353127687,1739587838027,-500.0,0.00010958,2]
[353127688,1739587838035,-503.21051466,0.00010958,2]
[353127689,1739587838045,-309.50006824,0.00010958,2]
[353127690,1739587838054,-767.45,0.00010958,2]
[353127691,1739587838064,-748.2,0.00010958,2]
[353127692,1739587838074,-500.0,0.00010958,2]
[353127693,1739587838087,-504.1827782,0.00010958,2]
[353127694,1739587838096,-500.0,0.00010958,2]
[353127695,1739587838105,-500.0,0.00010958,2]
[353127696,1739587838114,-500.0,0.00010958,2]
[353127697,1739587838124,-1117.97,0.00010958,2]
[353127698,1739587838133,-500.0,0.00010958,2]
[353127699,1739587838142,-500.0,0.00010958,2]
[353127700,1739587838151,-505.18871011,0.00010958,2]
[353127701,1739587838161,-504.39437625,0.00010958,2]
[353127702,1739587838170,-501.98085488,0.00010958,2]
[353127703,1739587838179,-1003.69,0.00010958,2]
[353127704,1739587838188,-500.0,0.00010958,2]
[353127705,1739587838197,-502.64140711,0.00010958,2]
[353127706,1739587838207,-505.85088737,0.00010958,2]
[353127707,1739587838216,-1961.92,0.00010958,2]
[353127708,1739587838225,-500.0,0.00010958,2]
[353127709,1739587838234,-500.0,0.00010958,2]
[353127710,1739587838244,-602.36,0.00010958,2]
[353127711,1739587838254,-502.65198462,0.00010958,2]
[353127712,1739587838263,-1650.28,0.00010958,2]
[353127713,1739587838273,-500.99409645,0.00010958,2]
[353127714,1739587838282,-504.31066291,0.00010958,2]
[353127715,1739587838291,-500.0,0.00010958,2]
[353127716,1739587838300,-494.63102948,0.00010958,2]
[353127717,1739587838310,-500.0,0.00010958,2]
[353127718,1739587838319,-500.0,0.00010958,2]
[353127719,1739587838328,-507.53132837,0.00010958,2]
[353127720,1739587838337,-504.80728128,0.00010958,2]
[353127721,1739587838346,-500.0,0.00010958,2]
[353127722,1739587838355,-500.0,0.00010958,2]
[353127723,1739587838365,-1736.32,0.00010958,2]
[353127724,1739587838375,-503.27790892,0.00010958,2]
[353127725,1739587838384,-661.61,0.00010958,2]
[353127726,1739587838393,-502.85327624,0.00010958,2]
[353127727,1739587838403,-501.54670786,0.00010958,2]
[353127728,1739587838412,-500.9247717,0.00010958,2]
[353127729,1739587838421,-500.0,0.00010958,2]
[353127730,1739587838430,-500.0,0.00010958,2]
[353127731,1739587838439,-877.24,0.00010958,2]
[353127732,1739587838448,-500.0,0.00010958,2]
[353127733,1739587838457,-169.02256863,0.00010958,2]
[353127734,1739587838467,-500.0,0.00010958,2]
[353127735,1739587838477,-500.0,0.00010958,2]
[353127736,1739587838486,-500.0,0.00010958,2]
[353127737,1739587838495,-1584.24,0.00010958,2]
[353127738,1739587838505,-500.0,0.00010958,2]
[353127739,1739587838514,-462.91546071,0.00010958,2]
[353127740,1739587838523,-502.3120939,0.00010958,2]
[353127741,1739587838536,-502.2450133,0.00010958,2]
[353127742,1739587838545,-500.0,0.00010958,2]
[353127743,1739587838555,-500.0,0.00010958,2]
[353127744,1739587838564,-505.18442069,0.00010958,2]
[353127745,1739587838573,-504.416661,0.00010958,2]
[353127746,1739587838583,-1226.29,0.00010958,2]
[353127747,1739587838592,-840.42,0.00010958,2]
[353127748,1739587838602,-500.0,0.00010958,2]
[353127749,1739587838612,-500.0,0.00010958,2]
[353127750,1739587838622,-409.25735615,0.00010958,2]
[353127751,1739587838631,-505.66913245,0.00010958,2]
[353127752,1739587838640,-867.47,0.00010958,2]
[353127753,1739587838650,-5251.91,0.00010958,2]
[353127754,1739587838659,-500.67593624,0.00010958,2]
[353127755,1739587838669,-500.0,0.00010958,2]
[353127756,1739587838678,-505.38431398,0.00010958,2]
[353127757,1739587838687,-749.91,0.00010958,2]
[353127758,1739587838696,-507.7337278,0.00010958,2]
[353127759,1739587838706,-500.0,0.00010958,2]
[353127760,1739587838716,-502.93661754,0.00010958,2]
[353127761,1739587838726,-500.0,0.00010958,2]
[353127762,1739587838736,-698.29,0.00010958,2]
[353127763,1739587838747,-503.41670468,0.00010958,2]
[353127764,1739587838756,-503.44721362,0.00010958,2]
[353127765,1739587838766,-153.18870718,0.00010958,2]
[353127766,1739587838776,-500.0,0.00010958,2]
[353127767,1739587838785,-502.56107514,0.00010958,2]
[353127768,1739587838796,-500.0,0.00010958,2]
[353127769,1739587838805,-500.0,0.00010958,2]
[353127770,1739587838815,-500.0,0.00010958,2]
[353127771,1739587838825,-500.68859742,0.00010958,2]
[353127772,1739587838835,-500.0,0.00010958,2]
[353127773,1739587838844,-500.0,0.00010958,2]
[353127774,1739587838854,-758.16,0.00010958,2]
[353127775,1739587838863,-504.32476085,0.00010958,2]
[353127776,1739587838873,-500.0,0.00010958,2]
[353127777,1739587838883,-502.99377004,0.00010958,2]
[353127778,1739587838892,-500.0,0.00010958,2]
[353127779,1739587838902,-500.0,0.00010958,2]
[353127780,1739587838912,-1562.22,0.00010958,2]
[353127781,1739587838921,-500.0,0.00010958,2]
[353127782,1739587838931,-500.0,0.00010958,2]
[353127783,1739587838941,-500.0,0.00010958,2]
[353127784,1739587838950,-498.92768155,0.00010958,2]
[353127785,1739587838960,-500.0,0.00010958,2]
[353127786,1739587838970,-500.0,0.00010958,2]
[353127787,1739587838979,-500.0,0.00010958,2]
[353127788,1739587838989,-500.0,0.00010958,2]
[353127789,1739587838999,-479.27846515,0.00010958,2]
[353127790,1739587839009,-500.0,0.00010958,2]
[353127791,1739587839018,-838.8,0.00010958,2]
[353127792,1739587839029,-494.12849567,0.00010958,2]
[353127793,1739587839038,-504.25655632,0.00010958,2]
[353127794,1739587839048,-502.27608865,0.00010958,2]
[353127795,1739587839057,-500.0,0.00010958,2]
[353127796,1739587839066,-500.0,0.00010958,2]
[353127797,1739587839076,-1331.67,0.00010958,2]
[353127798,1739587839085,-500.0,0.00010958,2]
[353127799,1739587839094,-500.0,0.00010958,2]
[353127800,1739587839104,-500.0,0.00010958,2]
[353127801,1739587839113,-503.34561315,0.00010958,2]
[353127802,1739587839122,-500.0,0.00010958,2]
[353127803,1739587839132,-500.0,0.00010958,2]
[353127804,1739587839142,-2098.03,0.00010958,2]
[353127805,1739587839151,-861.43,0.00010958,2]
[353127806,1739587839160,-563.79530985,0.00010958,2]
[353127807,1739587839170,-500.0,0.00010958,2]
[353127808,1739587839179,-501.29637368,0.00010958,2]
[353127809,1739587839190,-500.0,0.00010958,2]
[353127810,1739587839200,-500.0,0.00010958,2]
[353127811,1739587839209,-502.8967245,0.00010958,2]
[353127812,1739587839220,-873.07,0.00010958,2]
[353127813,1739587839230,-569.13,0.00010958,2]
[353127814,1739587839241,-503.5539735,0.00010958,2]
[353127815,1739587839251,-501.7487983,0.00010958,2]
[353127816,1739587839261,-319.5014417,0.00010958,2]
[353127817,1739587839271,-501.37598321,0.00010958,2]
[353127818,1739587839498,-502.54177188,0.00010958,2]
[353127819,1739587839509,-500.0,0.00010958,2]
[353127820,1739587839518,-500.50667278,0.00010958,2]
[353127821,1739587839529,-500.0,0.00010958,2]
[353127822,1739587839543,-500.0,0.00010958,2]
[353127823,1739587839553,-500.0,0.00010958,2]
[353127826,1739587839563,-502.29778183,0.00010958,2]
[353127827,1739587839575,-500.0,0.00010958,2]
[353127828,1739587839584,-500.0,0.00010958,2]
[353127829,1739587839594,-502.94433688,0.00010958,2]
[353127830,1739587839604,-505.19311674,0.00010958,2]
[353127831,1739587839614,-500.0,0.00010958,2]
[353127832,1739587839624,-500.0,0.00010958,2]
[353127833,1739587839634,-500.0,0.00010958,2]
[353127834,1739587839644,-500.0,0.00010958,2]
[353127835,1739587839654,-500.0,0.00010958,2]
[353127836,1739587839663,-500.0,0.00010958,2]
[353127837,1739587839674,-500.0,0.00010958,2]
[353127838,1739587839683,-316.77581506,0.00010958,2]
[353127839,1739587839693,-500.0,0.00010958,2]
[353127840,1739587839703,-500.0,0.00010958,2]
[353127841,1739587839713,-500.0,0.00010958,2]
[353127842,1739587839724,-500.0,0.00010958,2]
[353127843,1739587839733,-500.0,0.00010958,2]
[353127844,1739587839745,-500.0,0.00010958,2]
[353127845,1739587839755,-500.0,0.00010958,2]
[353127846,1739587839765,-500.0,0.00010958,2]
[353127847,1739587839776,-500.0,0.00010958,2]
[353127848,1739587839786,-500.0,0.00010958,2]
[353127849,1739587839796,-500.0,0.00010958,2]
[353127850,1739587839806,-563.79,0.00010958,2]
[353127851,1739587839816,-500.0,0.00010958,2]
[353127852,1739587839826,-747.42,0.00010958,2]
[353127853,1739587839835,-503.0727137,0.00010958,2]
[353127854,1739587839846,-503.15776712,0.00010958,2]
[353127855,1739587839856,-500.0,0.00010958,2]
[353127856,1739587839866,-500.0,0.00010958,2]
[353127857,1739587839879,-500.0,0.00010958,2]
[353127858,1739587839889,-500.0,0.00010958,2]
[353127859,1739587839899,-500.0,0.00010958,2]
[353127860,1739587839909,-1608.67,0.00010958,2]
[353127861,1739587839919,-150.0,0.00010959,2]
[353127862,1739587839928,-165.00124427,0.00011023,2]
[353127863,1739587839938,-384.01267948,0.00011023,2]
[353127864,1739587839948,-428.9813597,0.00011039,2]
[353127865,1739587839958,-500.0,0.00011039,2]
[353127866,1739587839968,-573.05,0.00011039,2]
[353127867,1739587839978,-500.0,0.00011039,2]
[353127868,1739587839988,-500.0,0.00011039,2]
[353127869,1739587839999,-538.09,0.00011039,2]
[353127870,1739587840009,-500.0,0.00011039,2]
[353127871,1739587840019,-590.5,0.00011039,2]
[353127872,1739587840030,-563.97,0.00011039,2]
[353127873,1739587840039,-500.0,0.00011039,2]
[353127874,1739587840049,-500.0,0.00011039,2]
[353127875,1739587840059,-500.0,0.00011039,2]
[353127876,1739587840068,-554.07298329,0.00011039,2]
[353127877,1739587840079,-672.24,0.00011039,2]
[353127878,1739587840088,-500.0,0.00011039,2]
[353127879,1739587840098,-500.0,0.00011039,2]
[353127880,1739587840107,-500.0,0.00011039,2]
[353127881,1739587840117,-597.69,0.00011039,2]
[353127882,1739587840126,-619.22,0.00011039,2]
[353127883,1739587840135,-500.0,0.00011039,2]
[353127884,1739587840145,-500.0,0.00011039,2]
[353127886,1739587840155,-501.46489662,0.00011039,2]
[353127888,1739587840164,-500.0,0.00011039,2]
[353127890,1739587840174,-500.0,0.00011039,2]
[353127892,1739587840184,-500.0,0.00011039,2]
[353127894,1739587840194,-510.20371266,0.00011039,2]
[353127896,1739587840203,-500.0,0.00011039,2]
[353127898,1739587840212,-577.36,0.00011039,2]
[353127900,1739587840222,-1025.57,0.00011039,2]
[353127902,1739587840231,-500.0,0.00011039,2]
[353127904,1739587840241,-500.0,0.00011039,2]
[353127907,1739587840251,-669.55,0.00011039,2]
[353127908,1739587840261,-500.0,0.00011039,2]
[353127910,1739587840271,-747.32,0.00011039,2]
[353127912,1739587840281,-611.87,0.00011039,2]
[353127914,1739587840291,-639.58,0.00011039,2]
[353127916,1739587840301,-500.0,0.00011039,2]
[353127918,1739587840311,-500.0,0.00011039,2]
[353127920,1739587840321,-653.27,0.00011039,2]
[353127922,1739587840331,-500.0,0.00011039,2]
[353127924,1739587840340,-1158.3,0.00011039,2]
[353127926,1739587840350,-500.0,0.00011039,2]
[353127928,1739587840360,-549.32,0.00011039,2]
[353127931,1739587840369,-500.0,0.00011039,2]
[353127933,1739587840379,-500.0,0.00011039,2]
[353127935,1739587840389,-1097.73,0.00011039,2]
[353127937,1739587840399,-500.0,0.00011039,2]
[353127939,1739587840408,-575.32,0.00011039,2]
[353127941,1739587840418,-500.0,0.00011039,2]
[353127943,1739587840428,-768.56,0.00011039,2]
[353127945,1739587840438,-1274.56,0.00011039,2]
[353127947,1739587840449,-802.7,0.00011039,2]
[353127949,1739587840459,-1534.55,0.00011039,2]
[353127951,1739587840469,-1721.22,0.00011039,2]
[353127953,1739587840480,-500.0,0.00011039,2]
[353127955,1739587840490,-720.33,0.00011039,2]
[353127957,1739587840503,-1422.0,0.00011039,2]
[353127959,1739587840513,-2004.51,0.00011039,2]
[353127961,1739587840523,-500.0,0.00011039,2]
[353127963,1739587840534,-572.34,0.00011039,2]
[353127965,1739587840545,-1030.16,0.00011039,2]
[353127967,1739587840556,-632.02,0.00011039,2]
[353127969,1739587840566,-1125.72,0.00011039,2]
[353127971,1739587840577,-503.82776132,0.00011039,2]
[353127973,1739587840587,-500.0,0.00011039,2]
[353127975,1739587840597,-503.20274197,0.00011039,2]
[353127977,1739587840606,-500.0,0.00011039,2]
[353127979,1739587840618,-2654.41,0.00011039,2]
[353127981,1739587840629,-500.0,0.00011039,2]
[353127983,1739587840638,-1565.24,0.00011039,2]
[353127985,1739587840648,-500.0,0.00011039,2]
[353127987,1739587840657,-1453.88,0.00011039,2]
[353127989,1739587840667,-1241.26,0.00011039,2]
[353127992,1739587840677,-1876.11,0.00011039,2]
[353127994,1739587840687,-3375.38,0.00011039,2]
[353127995,1739587840697,-1404.71,0.00011039,2]
[353127997,1739587840707,-713.15,0.00011039,2]
[353127999,1739587840717,-1404.33,0.00011039,2]
[353128001,1739587840727,-887.29,0.00011039,2]
[353128003,1739587840737,-699.56,0.00011039,2]
[353128005,1739587840748,-500.0,0.00011039,2]
[353128007,1739587840758,-1400.1,0.00011039,2]
[353128008,1739587840768,-597.57,0.00011039,2]
[353128009,1739587840777,-760.44,0.00011039,2]
[353128010,1739587840787,-1029.58,0.0001104,2]
[353128011,1739587840797,-500.0,0.0001104,2]
[353128012,1739587840807,-1178.74,0.0001104,2]
[353128013,1739587840816,-1232.32,0.0001104,2]
[353128014,1739587840827,-500.0,0.0001104,2]
[353128015,1739587840837,-1001.16,0.0001104,2]
[353128016,1739587840847,-531.31,0.0001104,2]
[353128017,1739587840857,-1205.29,0.0001104,2]
[353128018,1739587840867,-1677.0,0.0001104,2]
[353128019,1739587840876,-1188.03,0.0001104,2]
[353128020,1739587840886,-1262.26,0.0001104,2]
[353128021,1739587840896,-1659.24,0.0001104,2]
[353128022,1739587840906,-1707.92,0.0001104,2]
[353128023,1739587840915,-4258.61,0.0001104,2]
[353128024,1739587840926,-1079.16,0.0001104,2]
[353128025,1739587840935,-1057.28,0.0001104,2]
[353128026,1739587840945,-500.0,0.0001104,2]
[353128027,1739587840955,-2148.47,0.0001104,2]
[353128028,1739587840965,-1142.29,0.0001104,2]
[353128029,1739587840974,-500.0,0.00011041,2]
[353128030,1739587840984,-500.0,0.00011041,2]
[353128031,1739587840995,-500.0,0.00011041,2]
[353128032,1739587841005,-500.0,0.00011041,2]
[353128033,1739587841014,-505.29195066,0.00011041,2]
[353128034,1739587841024,-500.0,0.00011041,2]
[353128035,1739587841034,-500.0,0.00011041,2]
[353128036,1739587841044,-500.0,0.00011041,2]
[353128037,1739587841054,-506.06890442,0.00011041,2]
[353128038,1739587841063,-500.0,0.00011041,2]
[353128039,1739587841073,-500.0,0.00011041,2]
[353128040,1739587841082,-549.55865631,0.00011041,2]
[353128041,1739587841093,-500.0,0.00011041,2]
[353128042,1739587841102,-500.0,0.00011041,2]
[353128043,1739587841111,-500.0,0.00011041,2]
[353128044,1739587841121,-500.0,0.00011041,2]
[353128045,1739587841130,-500.0,0.00011041,2]
[353128046,1739587841140,-682.12,0.00011041,2]
[353128047,1739587841150,-506.37852706,0.00011041,2]
[353128048,1739587841159,-500.0,0.00011041,2]
[353128049,1739587841168,-500.0,0.00011041,2]
[353128050,1739587841177,-520.23743682,0.00011041,2]
[353128051,1739587841187,-500.0,0.00011041,2]
[353128052,1739587841197,-500.0,0.00011041,2]
[353128053,1739587841206,-500.0,0.00011041,2]
[353128054,1739587841217,-500.0,0.00011041,2]
[353128055,1739587841228,-500.0,0.00011041,2]
[353128056,1739587841237,-501.99931072,0.00011041,2]
[353128057,1739587841248,-500.0,0.00011041,2]
[353128058,1739587841258,-503.0211036,0.00011041,2]
[353128059,1739587841267,-500.0,0.00011041,2]
[353128060,1739587841277,-500.0,0.00011041,2]
[353128061,1739587841286,-500.0,0.00011041,2]
[353128062,1739587841296,-501.59572056,0.00011041,2]
[353128063,1739587841306,-500.0,0.00011041,2]
[353128064,1739587841315,-500.0,0.00011041,2]
[353128065,1739587841325,-500.0,0.00011041,2]
[353128066,1739587841334,-500.0,0.00011041,2]
[353128067,1739587841344,-500.0,0.00011041,2]
[353128068,1739587841353,-500.0,0.00011041,2]
[353128069,1739587841363,-500.0,0.00011041,2]
[353128070,1739587841372,-500.0,0.00011041,2]
[353128071,1739587841381,-500.0,0.00011041,2]
[353128072,1739587841391,-500.0,0.00011041,2]
[353128073,1739587841400,-500.0,0.00011041,2]
[353128074,1739587841411,-500.0,0.00011041,2]
[353128075,1739587841420,-500.0,0.00011041,2]
[353128076,1739587841430,-503.0795194,0.00011041,2]
[353128077,1739587841439,-500.0,0.00011041,2]
[353128078,1739587841448,-500.0,0.00011041,2]
[353128079,1739587841458,-500.0,0.00011041,2]
[353128080,1739587841467,-500.0,0.00011041,2]
[353128081,1739587841477,-500.0,0.00011041,2]
[353128082,1739587841486,-507.86740065,0.00011041,2]
[353128083,1739587841497,-500.0,0.00011041,2]
[353128084,1739587841507,-627.35,0.00011041,2]
[353128085,1739587841516,-504.65565259,0.00011041,2]
[353128086,1739587841526,-502.48515656,0.00011041,2]
[353128087,1739587841539,-502.20083676,0.00011041,2]
[353128088,1739587841548,-500.0,0.00011041,2]
[353128089,1739587841558,-500.0,0.00011041,2]
[353128090,1739587841568,-500.0,0.00011041,2]
[353128091,1739587841578,-500.0,0.00011041,2]
[353128092,1739587841587,-557.8075354,0.00011041,2]
[353128093,1739587841598,-500.86796981,0.00011041,2]
[353128094,1739587841608,-500.0,0.00011041,2]
[353128095,1739587841619,-587.83930183,0.00011041,2]
[353128096,1739587841628,-500.0,0.00011041,2]
[353128097,1739587841638,-500.0,0.00011041,2]
[353128098,1739587841648,-500.0,0.00011041,2]
[353128099,1739587841657,-500.0,0.00011041,2]
[353128100,1739587841667,-500.0,0.00011041,2]
[353128101,1739587841676,-500.0,0.00011041,2]
[353128102,1739587841687,-500.0,0.00011041,2]
[353128103,1739587841697,-602.15087235,0.00011041,2]
[353128104,1739587841708,-500.0,0.00011041,2]
[353128105,1739587841717,-533.81956029,0.00011041,2]
[353128106,1739587841727,-618.42521606,0.00011041,2]
[353128107,1739587841736,-500.0,0.00011041,2]
[353128108,1739587841747,-500.0,0.00011041,2]
[353128109,1739587841757,-500.0,0.00011041,2]
[353128110,1739587841777,-500.0,0.00011041,2]
[353128111,1739587841786,-506.17962954,0.00011041,2]
[353128112,1739587841796,-359.21037824,0.00011041,2]
[353128113,1739587841805,-500.0,0.00011041,2]
[353128114,1739587841815,-508.3486307,0.00011041,2]
[353128115,1739587841825,-503.53805508,0.00011041,2]
[353128116,1739587841835,-500.0,0.00011041,2]
[353128117,1739587841844,-500.0,0.00011041,2]
[353128118,1739587841853,-506.5902575,0.00011041,2]
[353128119,1739587841863,-497.40956481,0.00011041,2]
[353128120,1739587841874,-505.71116646,0.00011041,2]
[353128121,1739587841884,-500.0,0.00011041,2]
[353128122,1739587841893,-505.82355138,0.00011041,2]
[353128123,1739587841976,-500.0,0.00011041,2]
[353128124,1739587841986,-500.0,0.00011041,2]
[353128125,1739587841995,-506.81980691,0.00011041,2]
[353128126,1739587842004,-507.22862885,0.00011041,2]
[353128127,1739587842013,-500.0,0.00011041,2]
[353128128,1739587842022,-505.99661054,0.00011041,2]
[353128129,1739587842032,-750.75,0.00011041,2]
[353128130,1739587842042,-504.51009617,0.00011041,2]
[353128131,1739587842054,-500.0,0.00011041,2]
[353128132,1739587842066,-483.59758066,0.00011041,2]
[353128133,1739587842076,-648.56,0.00011041,2]
[353128134,1739587842086,-506.2739194,0.00011041,2]
[353128135,1739587842096,-504.67017072,0.00011041,2]
[353128136,1739587842106,-500.0,0.00011041,2]
[353128137,1739587842116,-503.02535449,0.00011041,2]
[353128138,1739587842126,-500.0,0.00011041,2]
[353128139,1739587842136,-500.0,0.00011041,2]
[353128140,1739587842146,-860.82,0.00011041,2]
[353128141,1739587842155,-500.0,0.00011041,2]
[353128142,1739587842165,-504.76949692,0.00011041,2]
[353128143,1739587842175,-500.0,0.00011041,2]
[353128144,1739587842185,-502.20222712,0.00011041,2]
[353128145,1739587842194,-500.0,0.00011041,2]
[353128146,1739587842203,-998.31,0.00011041,2]
[353128147,1739587842212,-500.0,0.00011041,2]
[353128148,1739587842221,-653.12,0.00011041,2]
[353128149,1739587842230,-507.83142282,0.00011041,2]
[353128150,1739587842240,-500.0,0.00011041,2]
[353128151,1739587842250,-503.53198042,0.00011041,2]
[353128152,1739587842259,-500.0,0.00011041,2]
[353128153,1739587842268,-504.53708963,0.00011041,2]
[353128154,1739587842277,-500.0,0.00011041,2]
[353128155,1739587842287,-500.0,0.00011041,2]
[353128156,1739587842296,-500.0,0.00011041,2]
[353128157,1739587842306,-500.0,0.00011041,2]
[353128158,1739587842314,-500.0,0.00011041,2]
[353128159,1739587842323,-500.0,0.00011041,2]
[353128160,1739587842332,-572.71,0.00011041,2]
[353128162,1739587842341,-540.21,0.00011041,2]
[353128163,1739587842350,-500.0,0.00011041,2]
[353128165,1739587842359,-501.58172814,0.00011041,2]
[353128168,1739587842369,-500.0,0.00011041,2]
[353128169,1739587842378,-500.0,0.00011041,2]
[353128171,1739587842387,-500.0,0.00011041,2]
[353128173,1739587842397,-500.0,0.00011041,2]
[353128176,1739587842407,-500.0,0.00011041,2]
[353128179,1739587842417,-502.54084615,0.00011041,2]
[353128181,1739587842426,-500.0,0.00011041,2]
[353128182,1739587842437,-512.82031968,0.00011041,2]
[353128184,1739587842447,-1406.0,0.00011041,2]
[353128185,1739587842456,-224.90695823,0.00011041,2]
[353128186,1739587842467,-500.0,0.00011041,2]
[353128187,1739587842477,-500.0,0.00011041,2]
[353128188,1739587842487,-500.0,0.00011041,2]
[353128190,1739587842498,-810.46,0.00011041,2]